Workbook

Sheet ITEMS PRESUPUESTO
B4: VICERRECTORÍA ADMINISTRATIVA Y FINANCIERA | D4: VICERRECTORIA ADMINISTRATIVA
B5: FORMATO INTERNO DE PRESUPUESTO | D5: FORMATOS PARA PRESENTACIÓN DE PROYECTOS
B6: PROYECTOS Y PROGRAMAS DE DOCENCIA, INVESTIGACIÓN Y EXTENSIÓN | D6: FORMATOS PARA PRESENTACIÓN DE PROYECTOS
B7: VIGENCIA 2020
B9: NOMBRE DEL PROYECTO
B10: DURACIÓN DEL PROYECTO
B11: CODIGO DEL PROYECTO
B12: RESPONSABLE DEL PROYECTO
B13: DEPENDENCIA
B33: IMPORTANTE: POR FAVOR IMPRIMA SÓLO LAS HOJAS O RUBROS QUE TENGAN REQUERIMIENTOS.

Sheet GASTOS DE PERSONAL
B2: VICERRECTORÍA ADMINISTRATIVA Y FINANCIERA
B3: FORMATO INTERNO DE PRESUPUESTO DE PROYECTOS Y PROGRAMAS
B4: =+'ITEMS PRESUPUESTO'!B7:J7 -> VIGENCIA 2020
C7: PROYECCIÓN CONTRATACIÓN DE PERSONAL | IR7: FALSE
C9: TIPOS DE CONTRATACIÓN:
B10: PS | C10: PS = Orden o Contrato de Prestación de Servicios: Es el pago de honorarios por los servicios prestados a personas naturales o jurídicas, con autonomía del contratista. Se incluyen los servicios de traducción de artículos, contratación de horas para la educación no formal tales como diplomados, congresos, seminarios, talleres, entre otros.
B11: O | C11: O = Ocasional de Proyecto: Contratación menor a doce (12) meses autorizada para programas de Pregrado y Posgrado, proyectos Institucionales, laboratorios, organismos, entre otros proyectos de largo aliento. La asignación salarial se establece con base en las atividades a desarrollar y el nivel de responsabilidad y acorde a las tablas de la Universidad; su autorización está sujeta a la validación por parte de la Vicerrectoría Administrativa y Financiera, la disponibilidad presupuestal y la duración del proyecto.
B12: HC | C12: TA = Transitorio Administrativo: Vinculación que la Universidad realiza para atender apoyo y gestión de labores administrativas donde no exista el personal de planta, provendrán de una selección objetiva al perfil del cargo. La asignación salarial se establece con el nivel de responsabilidad y su autorización está sujeta a la validación de la necesidad del mismo por parte de la Vicerrectoría Administrativa y la disponibilidad presupuestal. Contratación menor a 1 año.
B13: M | C13: TD = Transitorio Docente: Corresponde a la vinculación de docentes con una dedicación de tiempo completo o de medio tiempo que sean requeridos para atender servicios de docencia en los programas de pregrado en ciclo en la modalidad de Jornada Especial (oferta aprobada por el Consejo Superior) por periodos inferiores a un año. Su autorización está sujeta a la viabilidad presupuestal y a los topes establecidos en el estudio financiero.
B14: TG | C14: DC= Docente catedráticos: Es la vinculación establecida en la Ley 30 de 1992, el Estatuto Docente y los Acuerdos No. 15 de 1996 y 12 de 1997. Esta contratación se realiza de acuerdo con la categoría del docente en el escalafón y las horas a dictar, según la asignación de carga académica que realice el Director o Coordinador del programa. Aplica para programas en ciclo en la modalidad Jornada Especial (Aprobada por el Consejo Superior). Nota: Esta vinculación se realiza a través de Gestión de Talento Humano.
B15: ILEX | C15: HC = Hora Cátedra: Contempla el pago por concepto de docencia directa para los programas de Pregrado y Posgrado de acuerdo con el plan de estudios. Esta contratación se realiza por el número de horas a dictar y con el valor de hora integral establecido en las tablas del Acuerdo 21 de 2007; a través de órdenes de servicio (Para personal no vinculado con la universidad que se requiera para pregrado en la modadlidad de cohortes y posgrados) o Resolución de incentivo tipo "Hora cátedra Bonificación Acuerdo 21" para el personal que labora en la Universidad. Se incluyen en este concepto el pago de hora de los cursos intersemestrales, 4,5% SMMLV según el Acuerdo 10 de 2005, los cuales se realizarán por orden de servicios para el personal no vinculado a la Universidad o por Resolución tipo "Intersemestrales" para el personal vinculado.
B16: ST | C16: M = Monitorías: Apoyo a actividades en las áreas de Docencia, lnvestigación, Social o de Proyectos desarrolladas por estudiantes (Acuerdo No. 38 del 2012). El valor de la hora es 0,74% SMMLV ($6.130 /hora para 2019). Las modadlidades utilizadas en los proyectos son: Monitorías Académicas: Es el apoyo al docente que dirige una asignatura práctica o teórico-práctica durante el semestre académico. Las asignaturas son validadas por la Vicerrectoría Académica. Favor diligenciar las necesidades en la pestaña "Monitorías Académicas". Monitorías de Proyecto: Es el apoyo en actividades requeridas para el desarrollo del mismo.
B17: EA | C17: TG=Directores, Jurados y Evaluadores: Contempla el pago de directores y jurados por tesis o trabajos de grado, evaluadores de publicaciones y en el marco de contratos o convenios, entre otros. Nota: El incentivo a pagar por este concepto a los directores de trabajos de grado de los programas de pregrado en Jornada Especial o cohorte deberá estar enmarcado en el Acuerdo No. 29 del 24 de junio de 2009.
B18: BE | C18: ILEX= Cursos Ilex: Contempla la contratacion al proyecto 511-4-131-06 ILEX UTP para los cursos de pregrado, el valor del curso por estudiante corresponde al 15% SMMLV. Para los cursos de comprensión para Posgrados y demás servicios ofertados por el ILEX Extensión código 511-22-214-05, los valores son establecidos por la Coordinación del ILEX (Resolución No. 237 del 17 de enero de 2018).
B19: CO | C19: ST= Servicios técnicos especiales: Es la contratación que se realiza en el marco de los proyectos con Colciencias a través de contratos de prestación de servicios.
C20: Incentivos: Corresponde al pago de bonificaciones al personal de la Universidad por participación en proyectos según lo establecido en el Acuerdo No. 21 de 2007:
C21: EA = Estímulo Labores Administrativas: Es el incentivo para el personal de la UTP que participe en actividades administrativas de proyectos por fuera del horario laboral regido por la fórmula: (Salario Básico*1,6*1,25)/240. Nota: En ningún caso este estímulo podrá superar el 50% de la asignación mensual.
C22: BE = Bonificación Servicios de Extensión: Contempla la bonificación para el personal que labora en la Universidad (Planta y transitorios) por fuera de su horario laboral y que participa en proyectos de extensión tales como educación no formal, servicios de laboratorio, consultorias, gestión tecnológica, entre otros, e investigación de acuerdo con lo establecido en el Acuerdo 21 de 2007.
C23: CO = Coordinación: Es el incentivo para el personal que labora en la Universidad (Planta o transitorio) para realizar actividades de Coordinación de un proyecto o programa. Para proyectos o programas que no son de Posgrado hasta el 15% y para Posgrados hasta el 20% de la asignación básica mensual. En ningún caso se reconocerán estos porcentajes por cohorte pero sí se reconocerán en ofertas en otra ciudad. No podrá designarse más de un Coordinador o Director para una misma actividad.
C24: Nota: Diligenciar únicamente los espacios en blanco
C25: 1 | E25: SMMLV 2019: | F25: 828116 | G25: Incremento Proyectado SMMLV 2020: | H25: 0.06
G26: Incremento Proyectado IPC: | H26: 0.034
G28: Incremento Proyectado Planta y Transitorios | I28: =+$H$26+1.32% -> 0.0472
G29: Aux Transporte proyectado 2020 | I29: =97032*(1+H25) -> 102853.92
C31: CEDULA | D31: NOMBRE Y APELIDOS DEL FUNCIONARIO | E31: TITULO ACADEMICO | F31: TIPO DE CONTRATACIÓN | G31: CARGO O ACTIVIDAD A DESEMPEÑAR | H31: DEDICACIÓN | I31: VALOR HORA O ASIGNACIÓN MES | J31: AÑO
H32: MT = 1 | J32: NO. HORAS O MESES | K32: TOTAL
H33: TC = 2
H34: N.A.
K35: =IF(J35="",IF(I35>0,"Falta # horas o meses",0),IF(AND(I35>0,F35=""),"Falta diligenciar el tipo de contratación",IF(OR(F35="O",F35="TA",F35="TD"),(IF(I35<=$F$25*2,$I$29+(I35*(1+$I$28)*J35)*1.7,(I35*(1+$I$28)*J35)*1.7)),IF(OR(F35="DC",F35="EA",F35="CO"),(I35*(1+$I$28)*J35),IF(OR(F35="PS",F35="TG",F35="ST"),(I35*(1+$H$26)*J35),(I35*(1+$H$25)*J35)))))) -> 0
K36: 0
K37: 0
K38: 0
K39: 0
K40: 0
K41: 0
K42: 0
K43: 0
K44: 0
K45: 0
K46: 0
K47: =IF(J47="",IF(I47>0,"Falta # horas o meses",0),IF(AND(I47>0,F47=""),"Falta diligenciar el tipo de contratación",IF(OR(F47="O",F47="TA",F47="TD"),(IF(I47<=$F$25*2,$I$29+(I47*(1+$I$28)*J47)*1.7,(I47*(1+$I$28)*J47)*1.7)),IF(OR(F47="DC",F47="EA",F47="CO"),(I47*(1+$I$28)*J47),IF(OR(F47="PS",F47="TG",F47="ST"),(I47*(1+$H$26)*J47),(I47*(1+$H$25)*J47)))))) -> 0
K48: 0
K49: 0
K50: 0
K51: 0
K52: 0
K53: 0
K54: 0
K55: 0
K56: 0
K57: 0
K58: 0
K59: 0
K60: 0
K61: 0
K62: 0
K63: 0
K64: 0
K65: 0
K66: 0
K67: 0
K68: 0
K69: 0
K70: 0
K71: 0
K72: 0
K73: 0
K74: 0
K75: 0
K76: 0
K77: 0
K78: 0
K79: 0
K80: 0
C81: TOTAL CONTRATACIÓN DE PERSONAL | K81: =SUM(K35:K80) -> 0

Sheet MONITORÍAS ACADÉMICAS
B2: VICERRECTORIA ADMINISTRATIVA
B3: FORMATO INTERNO DE PRESUPUESTO
B4: =+'ITEMS PRESUPUESTO'!B7 -> VIGENCIA 2020
C7: PROYECCION MONITORÍAS ACADÉMICAS
C9: FORMATO EXCLUSIVO PARA PROGRAMAS DE PREGRADO EN JORNADA ESPECIAL, CERES Y PROGRAMAS DE PREGRADO EN EXTENSIÓN
C11: La Monitoría académica es la contratación de estudiantes de pregrado para llevar a cabo actividades de apoyo docente hasta por 8 horas semanales. La asignación de horas monitoría depende del tipo de asignatura:
C12: 1. En asignaturas teóricas: La hora de monitoría equivale al 50% de la intensidad horaria de la asignatura.
C13: 2. En asignaturas prácticas: La hora monitoría equivale al total de las horas de la asignatura.
C14: 3. En asignaturas teórico - prácticas: La hora monitoría equivale al total de las horas prácticas. En el caso de las horas prácticas sean menores a las teóricas se aprobará hasta el 50% de la intensidad horaria de la asignatura.
C16: Nota 1: Las asignaturas con Monitoría, son las establecidas en el Estudio Técnico y Financiero del Programa en Jornada Especial.
C17: Nota 2: La duración en semanas de Monitorías Académicas en el semestre puede ser máximo de 16 semanas.
K18: Valor Hora Monitoría 2019: | N18: =828116*0.0074 -> 6128.0584
J19: Incremento Proyectado 2020 = | N19: 0.06
C22: PROGRAMA ACADÉMICO | D22: CÓDIGO ASIGNATURA | E22: ASIGNATURA | F22: CATEGORÍA (Teórica, Práctica, Teórico-práctica) | G22: HORAS | I22: No. GRUPOS SEMESTRE | J22: HORAS PERMITIDAS | K22: SEMANAS SEMESTRE | L22: TOTAL HORAS SEMESTRE | M22: TOTAL HORAS AÑO | N22: VALOR TOTAL
G23: HT | H23: HP
J24: =IF(H24=0,G24/2,IF(H24>((H24+G24)/2),H24,(G24+H24)/2))*I24 -> 0 | L24: =J24*K24 -> 0 | M24: =L24*2 -> 0 | N24: =+M24*$N$18*(1+$N$19) -> 0
J25: =IF(H25=0,G25/2,IF(H25>((H25+G25)/2),H25,(G25+H25)/2))*I25 -> 0 | L25: =J25*K25 -> 0 | M25: =L25*2 -> 0 | N25: =+M25*$N$18*(1+$N$19) -> 0
J26: 0 | L26: 0 | M26: 0 | N26: 0
J27: =IF(H27=0,G27/2,IF(H27>((H27+G27)/2),H27,(G27+H27)/2))*I27 -> 0 | L27: =J27*K27 -> 0 | M27: 0 | N27: 0
J28: 0 | L28: 0 | M28: 0 | N28: 0
J29: 0 | L29: 0 | M29: 0 | N29: 0
J30: 0 | L30: 0 | M30: 0 | N30: 0
J31: 0 | L31: 0 | M31: 0 | N31: 0
J32: 0 | L32: 0 | M32: 0 | N32: 0
J33: 0 | L33: 0 | M33: 0 | N33: 0
J34: 0 | L34: 0 | M34: 0 | N34: 0
J35: 0 | L35: 0 | M35: 0 | N35: 0
J36: 0 | L36: 0 | M36: 0 | N36: 0
J37: 0 | L37: 0 | M37: 0 | N37: 0
J38: 0 | L38: 0 | M38: 0 | N38: 0
J39: 0 | L39: 0 | M39: 0 | N39: 0
J40: 0 | L40: 0 | M40: 0 | N40: 0
J41: 0 | L41: 0 | M41: 0 | N41: 0
J42: 0 | L42: 0 | M42: 0 | N42: 0
J43: 0 | L43: 0 | M43: 0 | N43: 0
J44: 0 | L44: 0 | M44: 0 | N44: 0
C45: TOTAL MONITORÍAS ACADÉMICAS | N45: =SUM(N24:N44) -> 0

Sheet COMPRA EQUIPO
B2: VICERRECTORÍA ADMINISTRATIVA Y FINANCIERA | M2: Equipo Audiovisual
B3: FORMATO INTERNO DE PRESUPUESTO DE PROYECTOS Y PROGRAMAS | M3: Equipo de Sistemas
B4: =+'ITEMS PRESUPUESTO'!B7:J7 -> VIGENCIA 2020 | M4: Software y bases de datos
M5: Equipo de Protección
C6: PROYECCION COMPRA DE EQUIPOS | M6: Equipo de Laboratorio
M7: Otros equipos
C8: 1. Por favor anexe las cotizaciones como referencia para la compra del equipo solicitado.
C9: Nota: Diligenciar únicamente los espacios en blanco.
C10: Definiciones:
C11: Adquisición de equipos: Adquisición de bienes tangibles de consumo duradero tales como: equipos de sistemas, equipos de comunicaciones, equipos de laboratorio, ventiladores, entre otros. También se incluye la adquisición de software y bases de datos.
C12: Muebles y enseres: Recursos destinados a la adquisición de muebles, sillas, mesas, persianas, estanterías, archivadores, páneles y módulos para oficina, entre otros
M13: Otros equipos
C15: TIPO | D15: NOMBRE DEL EQUIPO | E15: ESPECIFICACIONES | F15: MARCA O REFERENCIA | G15: UNIDAD DE MEDIDA | H15: COSTO UNIDAD (Iva Incluido) | I15: AÑO
I16: CANTIDAD | J16: TOTAL
C19: ADQUISICIÓN DE EQUIPOS (Equipos de sistemas, equipos de comunicaciones, equipos de laboratorio, ventiladores, entre otros. También se incluye la adquisición de software y bases de datos.)
J20: =$H20*I20 -> 0
J21: =$H21*I21 -> 0
J22: 0
J23: 0
J24: 0
J25: 0
J26: 0
J27: 0
J28: 0
J29: 0
J30: 0
J31: 0
J32: 0
J33: 0
J34: 0
J35: 0
J36: 0
J37: 0
J38: 0
J39: 0
J40: 0
C41: TOTAL ADQUISICIÓN DE EQUIPOS | J41: =SUM(J20:J40) -> 0
C42: MUEBLES Y ENSERES (Muebles, sillas, mesas, persianas, estanterías, archivadores, páneles y módulos para oficina, entre otros)
J43: =$H43*I43 -> 0
J44: =$H44*I44 -> 0
J45: 0
J46: 0
J47: 0
J48: 0
J49: 0
J50: 0
C51: TOTAL MUEBLES Y ENSERES | J51: =SUM(J43:J50) -> 0
C52: TOTAL COMPRA DE EQUIPO | J52: =J41+J51 -> 0
C55: IMPORTANTE: PARA SER INCLUIDAS EN EL PLAN DE COMPRAS DE LA UNIVERSIDAD, LAS SOLICITUDES DEBEN CONTENER TODAS LAS ESPECIFICACIONES REQUERIDAS PARA LA COMPRA ADECUADA DEL EQUIPO.

Sheet MATERIALES Y SUMINISTROS
B3: VICERRECTORÍA ADMINISTRATIVA Y FINANCIERA | C3: VICERRECTORIA ADMINISTRATIVA
B4: FORMATO INTERNO DE PRESUPUESTO DE PROYECTOS Y PROGRAMAS | C4: FORMATOS DE PRESUPUESTO
B5: =+'ITEMS PRESUPUESTO'!B7:J7 -> VIGENCIA 2020
C8: PROYECCIÓN MATERIALES Y SUMINISTROS
C11: Nota: Diligenciar únicamente los espacios en blanco
C12: Definiciones:
C13: Papelería, Útiles de Escritorio y Oficina: Incluye resmas, carpetas, lapiceros, tóner, cosedoras, reglas, perforadoras, cartulina, papel bond, entre otros
C14: Material Académico y de Laboratorio: Compra de materiales requeridos para el desarrollo de las prácticas académicas de laboratorios e insumos para la prestación de servicios de laboratorios.
C15: Material de Salud Ocupacional: Elementos de protección requeridos para seguridad y salud en el trabajo y para las prácticas de laboratorio tales como: batas de laboratorio, tapabocas, guantes, tapones para oídos, gafas, gorros, entre otros.
C16: Otros Materiales y Suministros: Incluye elementos de aseo y cafetería, entre otros
C19: ITEM | D19: IDENTIFICACION DEL MATERIAL | E19: ESPECIFICACIONES Y/O TIPO | F19: MARCA O REFERENCIA | G19: UNIDAD DE MEDIDA | H19: COSTO UNIDAD (Iva Incluido) | I19: AÑO
I20: CANTIDAD | J20: TOTAL
C22: PAPELERÍA, ÚTILES DE ESCRITORIO Y OFICINA (Resmas, carpetas, lapiceros, tóner, cosedoras, reglas, perforadoras, cartulina, papel bond, entre otros)
J23: =$H23*I23 -> 0
J24: =$H24*I24 -> 0
J25: =$H25*I25 -> 0
C26: TOTAL PAPELERÍA, ÚTILES DE ESCRITORIO Y OFICINA | J26: =SUM(J23:J25) -> 0
C27: MATERIAL ACADEMICO Y DE LABORATORIO (Materiales requeridos para el desarrollo de las prácticas académicas de laboratorios e insumos para la prestación de servicios de laboratorios)
J28: =$H28*I28 -> 0
J29: =$H29*I29 -> 0
J30: =$H30*I30 -> 0
C31: TOTAL MATERIAL ACADEMICO Y DE LABORATORIO | J31: =SUM(J28:J30) -> 0
C32: MATERIAL DE SALUD OCUPACIONAL (Elementos de protección requeridos para seguridad y salud en el trabajo y para las prácticas de laboratorio tales como: batas de laboratorio, tapabocas, guantes, tapones para oídos, gafas, gorros, entre otros)
J33: =$H33*I33 -> 0
J34: =$H34*I34 -> 0
J35: =$H35*I35 -> 0
C36: TOTAL MATERIAL DE SALUD OCUPACIONAL | J36: =SUM(J33:J35) -> 0
C37: OTROS MATERIALES Y SUMINISTROS (Elementos de aseo y cafetería, entre otros)
J38: =$H38*I38 -> 0
J39: =$H39*I39 -> 0
J40: =$H40*I40 -> 0
C41: TOTAL OTROS MATERIALES Y SUMINISTROS | J41: =SUM(J38:J40) -> 0
C42: TOTAL MATERIALES Y SUMINISTROS | J42: =+J26+J31+J36+J41 -> 0

Sheet MANTENIMIENTO
B3: VICERRECTORÍA ADMINISTRATIVA Y FINANCIERA | C3: VICERRECTORIA ADMINISTRATIVA
B4: FORMATO INTERNO DE PRESUPUESTO DE PROYECTOS Y PROGRAMAS | C4: FORMATOS DE PRESUPUESTO
B5: =+'ITEMS PRESUPUESTO'!B7:J7 -> VIGENCIA 2020
C8: PROYECCION MANTENIMIENTO
C10: Nota: Diligenciar únicamente los espacios en blanco
C13: MANTENIMIENTO DE BIENES MUEBLES, EQUIPOS Y ENSERES
C14: Nota: Este cálculo es autómatico y se aplica un porcentaje sobre el valor del equipo comprado
C15: DESCRIPCION | D15: % | E15: AÑO
E16: VALOR DEL EQUIPO | F16: TOTAL
C17: Equipo Audiovisual | D17: 0.1 | E17: =+SUMIF('COMPRA EQUIPO'!$C$20:$C$40,MANTENIMIENTO!C17,'COMPRA EQUIPO'!$J$20:$J$40) -> 0 | F17: =D17*E17 -> 0
C18: Equipo de Sistemas | D18: 0.06 | E18: =+SUMIF('COMPRA EQUIPO'!$C$20:$C$40,MANTENIMIENTO!C18,'COMPRA EQUIPO'!$J$20:$J$40) -> 0 | F18: =D18*E18 -> 0
C19: Software y bases de datos | D19: 0.03 | E19: =+SUMIF('COMPRA EQUIPO'!$C$20:$C$40,MANTENIMIENTO!C19,'COMPRA EQUIPO'!$J$20:$J$40) -> 0 | F19: 0
C20: Equipo de Protección | D20: 0.06 | E20: =+SUMIF('COMPRA EQUIPO'!$C$20:$C$40,MANTENIMIENTO!C20,'COMPRA EQUIPO'!$J$20:$J$40) -> 0 | F20: 0
C21: Equipo de Comunicación | D21: 0.1 | E21: =+SUMIF('COMPRA EQUIPO'!$C$20:$C$40,MANTENIMIENTO!C21,'COMPRA EQUIPO'!$J$20:$J$40) -> 0 | F21: 0
C22: Equipo de Laboratorio | D22: 0.06 | E22: =+SUMIF('COMPRA EQUIPO'!$C$20:$C$40,MANTENIMIENTO!C22,'COMPRA EQUIPO'!$J$20:$J$40) -> 0 | F22: 0
C23: Muebles y Enseres | D23: 0.1 | E23: =+SUMIF('COMPRA EQUIPO'!$C$20:$C$40,MANTENIMIENTO!C23,'COMPRA EQUIPO'!$J$20:$J$40) -> 0 | F23: 0
C24: Otros equipos | D24: 0.1 | E24: =+SUMIF('COMPRA EQUIPO'!$C$20:$C$40,MANTENIMIENTO!C24,'COMPRA EQUIPO'!$J$20:$J$40) -> 0 | F24: 0
C25: Otro tipo de mantenimiento:
F26: =D26*E26 -> 0
F27: 0
C28: =+C13 -> MANTENIMIENTO DE BIENES MUEBLES, EQUIPOS Y ENSERES | F28: =SUM(F17:F27) -> 0
C30: MANTENIMIENTO DE BIENES INMUEBLES
C31: Incluye mantenimiento arbóreo, zonas verdes, infraestructura física, entre otros
C32: DESCRIPCION | D32: CANTIDAD | E32: AÑO
E33: VALOR DEL MANTENIMIENTO | F33: TOTAL
F34: =E34*D34 -> 0
F35: =D35*$E35 -> 0
F36: =D36*$E36 -> 0
C37: SUBTOTAL DE BIENES INMBUEBLES | F37: =SUM(F34:F36) -> 0
C38: SERVICIOS PROGRAMAS EN PREGRADO
C39: Servicio de aseo, mantenimiento y vigilancia prorrateo por estudiante
C40: DESCRIPCION | D40: FACTOR | E40: VALOR POR ESTUDIANTE | F40: VALOR TOTAL
C41: Mantenimiento, aseo y vigilancia por estudiante (0,1578% SMMLV) | D41: 0.1578 | E41: =+D41*'GASTOS DE PERSONAL'!F25 -> 130676.7048 | F41: =E41*(IF(INGRESOS!F21>1,1,0)*((COUNTA(INGRESOS!$F$21:$F$30)/2)*INGRESOS!$F$21)+IF(INGRESOS!F40>1,1,0)*((COUNTA(INGRESOS!$F$40:$F$47)/2)*INGRESOS!$F$40)) -> 0
C42: =+C38 -> SERVICIOS PROGRAMAS EN PREGRADO | F42: =SUM(F41:F41) -> 0
C43: TOTAL MATENIMIENTO DE BIENES INMBUEBLES | F43: =+F37+F42 -> 0
C45: TOTAL MANTENIMIENTO | F45: =+F28+F43 -> 0

Sheet SERVICIOS PUBLICOS
H2: Incremento proyectado
C3: VICERRECTORÍA ADMINISTRATIVA Y FINANCIERA | H3: 1.08
C4: FORMATO INTERNO DE PRESUPUESTO DE PROYECTOS Y PROGRAMAS
C5: =+'ITEMS PRESUPUESTO'!B7 -> VIGENCIA 2020 | D5: =+'ITEMS PRESUPUESTO'!B7:J7 -> 0
C8: PROYECCION SERVICIOS PÚBLICOS
C9: Nota: Diligenciar únicamente los espacios en blanco
C13: SERVICIOS PÚBLICOS
C14: Nota: Este cálculo depende de la cantidad de líneas telefónicas e instalaciones de puntos de red requeridas en el cuadro anterior, sólo se debe diligenciar el número de meses.
C15: DESCRIPCION | D15: COSTO MES | E15: AÑO
E16: NO. MESES | F16: TOTAL
C17: Teléfono | D17: 125000 | F17: =D17*E17 -> 0
C18: Energía | D18: 125000 | F18: =D18*E18 -> 0
C19: Agua | D19: 125000 | F19: =D19*E19 -> 0
C20: Gas | D20: 20000 | F20: =D20*E20 -> 0
C21: Internet | D21: 25000 | F21: =D21*E21 -> 0
C22: TOTAL SERVICIOS PUBLICOS | F22: =SUM(F17:F21) -> 0
C24: SERVICIOS PROGRAMAS EN PREGRADO
C25: Servicios públicos prorrateo por estudiante
C26: DESCRIPCIÓN | D26: FACTOR | E26: VALOR POR ESTUDIANTE | F26: VALOR TOTAL
C27: Servicios Públicos Prorateo por estudiante | D27: 0.0876 | E27: =+D27*'GASTOS DE PERSONAL'!$F$25 -> 72542.9616 | F27: =E27*(IF(INGRESOS!F21>1,1,0)*((COUNTA(INGRESOS!$F$21:$F$30)/2)*INGRESOS!$F$21)+IF(INGRESOS!F40>1,1,0)*((COUNTA(INGRESOS!$F$40:$F$47)/2)*INGRESOS!$F$40)) -> 0
C28: =+C24 -> SERVICIOS PROGRAMAS EN PREGRADO | F28: =SUM(F27:F27) -> 0
C30: TOTAL SERVICIOS PUBLICOS | F30: =+F22+F28 -> 0

Sheet ARRENDAMIENTO
I1: Incremento proyectado arrendamiento
B2: VICERRECTORÍA ADMINISTRATIVA Y FINANCIERA | C2: VICERRECTORIA ADMINISTRATIVA | I2: 1.08
B3: FORMATO INTERNO DE PRESUPUESTO DE PROYECTOS Y PROGRAMAS | C3: FORMATOS DE PRESUPUESTO
B4: =+'ITEMS PRESUPUESTO'!B7:J7 -> VIGENCIA 2020
C7: PROYECCION ARRENDAMIENTO
C8: Nota: Diligenciar únicamente los espacios en blanco
E10: =+'GASTOS DE PERSONAL'!E25 -> SMMLV 2019: | F10: =+'GASTOS DE PERSONAL'!F25 -> 828116
E11: Incremento Proyectado 2020 | F11: 0.06
C13: ARRENDAMIENTO DE BIENES INMUEBLES (Incluye arrendamiento de espacios, locales, stand, entre otros))
C14: DESCRIPCION | D14: UNIDAD DE MEDIDA | E14: COSTO($) VALOR UNIDAD DE MEDIDA | F14: AÑO
F15: NO. DE EVENTOS | G15: TOTAL
C16: Alquiler salón centro de visitantes (diurno) | D16: 2 Horas | E16: =0.065*$F$10*(1+$F$11) -> 57057.1924 | G16: =+$E16*F16 -> 0
C17: Alquiler salón centro de visitantes (nocturno) | D17: 2 Horas | E17: =0.065*$F$10*(1+$F$11) -> 57057.1924 | G17: 0
C18: Alquiler salón centro de visitantes (festivo) | D18: 2 Horas | E18: =0.085*$F$10*(1+$F$11) -> 74613.2516 | G18: 0
C19: Alquiler Kiosco CDV y Cafetín (diurno) | D19: 2 Horas | E19: =0.065*$F$10*(1+$F$11) -> 57057.1924 | G19: 0
C20: Alquiler espacios para Proyectos de Investigación | D20: Metro2/mes | E20: =0.0065*$F$10*(1+$F$11) -> 5705.71924 | G20: 0
C21: Alquiler auditorio Jorge Roa (Jornada Ordinaria) | D21: 4 Horas | E21: =0.75*($F$10*(1+$F$11)) -> 658352.22 | G21: 0
C22: Alquiler auditorio Medicina (Jornada Ordinaria) | D22: 4 Horas | E22: =0.75*($F$10*(1+$F$11)) -> 658352.22 | G22: 0
C23: Alquiler auditorio Mecánica (Jornada Ordinaria) | D23: 4 Horas | E23: =0.5*($F$10*(1+$F$11)) -> 438901.48 | G23: 0
C24: Alquiler auditorio A-201 (Jornada Ordinaria) | D24: 4 Horas | E24: =0.5*($F$10*(1+$F$11)) -> 438901.48 | G24: 0
C25: Sala Magistral Bloque 13 | D25: 4 Horas | E25: =0.5*F10*(1+$F$11) -> 438901.48 | G25: 0
C26: Alquiler auditorio Jorge Roa (Domingos y Festivos) | D26: 4 Horas | E26: =1.15*($F$10*(1+$F$11)) -> 1009473.404 | G26: =+$E26*F26 -> 0
C27: Alquiler auditorio Medicina (Domingos y Festivos) | D27: 4 Horas | E27: =1.15*($F$10*(1+$F$11)) -> 1009473.404 | G27: =+$E27*F27 -> 0
C28: Alquiler auditorio Mecánica (Domingos y Festivos) | D28: 4 Horas | E28: =0.75*($F$10*(1+$F$11)) -> 658352.22 | G28: =+$E28*F28 -> 0
C29: Alquiler auditorio A-201 (Domingos y Festivos) | D29: 4 Horas | E29: =0.75*($F$10*(1+$F$11)) -> 658352.22 | G29: =+$E29*F29 -> 0
C30: Alquiler sala de sistemas (20 equipos y Video Beam) | D30: 1 Hora | E30: =78000*(1+F11) -> 82680 | G30: 0
C31: Alquiler sala de sistemas (40 equipos y Video Beam) | D31: 1 Hora | E31: =134400*(1+F11) -> 142464 | G31: 0
C32: Estudio Grabación Universitaria Estereo sin producción | D32: 1 Hora | E32: =82100*(1+F11) -> 87026 | G32: =+$E32*F32 -> 0
C33: Estudio Grabación Universitaria Estereo con producción | D33: 1 Hora | E33: =107300*(1+F11) -> 113738 | G33: =+$E33*F33 -> 0
C34: Otro tipo de arrendamiento o alquiler (Incluye arrendamiento de espacios, locales, stand, entre otros)
G35: =+$E35*F35 -> 0
G36: =+$E36*F36 -> 0
C37: TOTAL ARRENDAMIENTO DE BIENES INMUEBLES | G37: =SUM(G16:G36) -> 0
C39: ARRENDAMIENTO DE BIENES MUEBLES Y EQUIPOS (Incluye arrendamiento de carpas, sillas, mesas, equipos, entre otros)
C40: DESCRIPCION | D40: UNIDAD DE MEDIDA | E40: COSTO($) VALOR UNIDAD DE MEDIDA | F40: AÑO
F41: CANTIDAD | G41: TOTAL
G42: =+$E42*F42 -> 0
G43: =+$E43*F43 -> 0
G44: =+$E44*F44 -> 0
C45: TOTAL ARRENDAMIENTO DE BIENES MUEBLES Y EQUIPOS | G45: =SUM(G42:G44) -> 0
C47: OTROS ARRENDAMIENTOS (Servicio de Almacenamiento en plataforma cloud, entre otros)
C48: DESCRIPCION | D48: UNIDAD DE MEDIDA | E48: COSTO($) VALOR UNIDAD DE MEDIDA | F48: AÑO
F49: NO. DE EVENTOS | G49: TOTAL
G50: =+$E50*F50 -> 0
G51: =+$E51*F51 -> 0
C52: TOTAL OTROS ARRENDAMIENTOS | G52: =SUM(G50:G51) -> 0
C54: TOTAL ARRENDAMIENTO | G54: =+G37+G45+G52 -> 0

Sheet VIATICOS Y GASTOS DE VIAJE
K2: Incremento proyectado
B3: VICERRECTORÍA ADMINISTRATIVA Y FINANCIERA | K3: 1.11
B4: FORMATO INTERNO DE PRESUPUESTO DE PROYECTOS Y PROGRAMAS
B5: =+'ITEMS PRESUPUESTO'!B7:J7 -> VIGENCIA 2020
B9: PROYECCIÓN VIÁTICOS Y GASTOS DE VIAJE
C11: Nota: Diligenciar únicamente los espacios en blanco
C14: TABLA DE AYUDA | G14: Notas: 1. Los valores de los tiquetes varían de acuerdo al destino y a la fecha de solicitud. 2. El valor de los viáticos varía de acuerdo al destino y cargo del funcionario.
C15: VALORES PROMEDIO PASAJES Y VIÁTICOS
C16: Costo Pasaje Nacional | E16: 700000
C17: Costo Viático Nacional por dia | E17: 220000
C18: Costo Pasaje Internacional | E18: 3000000
C19: Costo Viático Internacional por dia | E19: 820000
C21: Ver Lineamientos en el siguiente Link: | E21: http://www.utp.edu.co/vicerrectoria/administrativa/comisiones-de-servicio.html
C23: COMISIONES DE SERVICIO Y APOYOS ECONÓMICOS NACIONALES (Incluye todos los gastos relacionados con las comisiones de tipo GESTIÓN ADMINISTRATIVA y apoyos económicos nacionales establecidos en la Resolución No. 1334 del 20/04/2016)
C24: No. personas | D24: Objeto | E24: Personal | F24: No. pasajes nacionales por persona | G24: Duración nacional (no. dias) por persona | H24: Valor total pasajes nacionales | I24: Valor total viáticos nacionales | J24: TOTAL
E25: Interno | H25: =F25*$E$16*C25 -> 0 | I25: =G25*$E$17*C25 -> 0 | J25: =+H25+I25 -> 0
H26: =F26*$E$16*C26 -> 0 | I26: =G26*$E$17*C26 -> 0 | J26: =+H26+I26 -> 0
H27: =F27*$E$16*C27 -> 0 | I27: =G27*$E$17*C27 -> 0 | J27: 0
C28: TOTAL COMISIONES DE SERVICIO Y APOYOS ECONÓMICOS NACIONALES | H28: =SUM(H25:H27) -> 0 | I28: =SUM(I25:I27) -> 0 | J28: =+SUM(J25:J27) -> 0
C30: COMISIONES DE SERVICIO Y APOYOS ECONÓMICOS INTERNACIONALES (Incluye todos los gastos relacionados con las comisiones de tipo GESTIÓN ADMINISTRATIVA y apoyos económicos internacionales establecidos en la Resolución No. 1334 del 20/04/2016.)
C31: No. personas | D31: Objeto | F31: No. pasajes internacionales por persona | G31: Duración internacional (no. dias) por persona | H31: Valor total pasajes internacionales | I31: Valor total viáticos internacionales | J31: TOTAL
H32: =F32*$E$18*C32 -> 0 | I32: =G32*$E$17*C32 -> 0 | J32: =+H32+I32 -> 0
H33: =F33*$E$18*C33 -> 0 | I33: =G33*$E$17*C33 -> 0 | J33: =+H33+I33 -> 0
H34: =F34*$E$18*C34 -> 0 | I34: =G34*$E$17*C34 -> 0 | J34: 0
C35: TOTAL COMISIÓN INTERNACIONAL | H35: =SUM(H32:H34) -> 0 | I35: =SUM(I32:I34) -> 0 | J35: =+SUM(J32:J34) -> 0
C37: APOYO ECONÓMICO ESTUDIANTE (Incluye los apoyos económicos que se otorgan a los estudiantes para participar en ponencias, congresos, pasantías, actividades culturales y deportivas, entre otros.)
C38: No. estudiantes | D38: Objeto/Justificación | F38: Valor del apoyo | H38: Valor total
H39: =+C39*F39 -> 0
H40: =+C40*F40 -> 0
H41: =+C41*F41 -> 0
C42: TOTAL APOYO ECONÓMICO ESTUDIANTE | H42: =SUM(H39:I41) -> 0
C44: VISITAS ACADÉMICAS Y SALIDAS DE CAMPO (Incluye los apoyos que se dan a los estudiantes para las visitas académicas y salidas de campo dentro de las actividades contempladas en los planes de estudios. Se incluyen las salidas de campo aprobadas en los proyectos de Colciencias.)
C45: No. estudiantes | D45: Objeto/Justificación | E45: Asignatura | G45: Valor del apoyo | H45: Valor total
H46: =G46*C46 -> 0
H47: =G47*C47 -> 0
H48: 0
C49: TOTAL VISITAS ACADÉMICAS Y SALIDAS DE CAMPO | H49: =SUM(H46:I48) -> 0
C51: HOSPEDAJE (Contratación de servicio de hospedaje)
C52: Descripción | E52: Valor del servicio | G52: No. de servicios | H52: Valor total
H53: =+E53*G53 -> 0
H54: =+E54*G54 -> 0
H55: =+E55*G55 -> 0
C56: TOTAL HOSPEDAJE | H56: =SUM(H53:I55) -> 0
C58: TOTAL VIÁTICOS Y GASTOS DE VIAJE | H58: =+J28+J35+H42+H49+H56 -> 0
E65: Interno
E66: Externo

Sheet IMPRESOS Y PUBLICACIONES
C2: VICERRECTORIA ADMINISTRATIVA
C3: FORMATO INTERNO DE PRESUPUESTO DE PROYECTOS Y PROGRAMAS
C4: =+'ITEMS PRESUPUESTO'!B7 -> VIGENCIA 2020
C7: PROYECCIÓN IMPRESOS Y PUBLICACIONES
C8: Nota: Dilgenciar únicamente los espacios en blanco.
C9: Nota (*): Los valores correspondientes a diseños varian de acuerdo al número de páginas, tintas, fotografías, redibujo de elementos, tamaño. El diseño no incluye la impresión.
C10: PAUTAS EN RADIO, PERIÓDICO Y TELEVISIÓN
C11: DESCRIPCION | D11: UNIDAD DE MEDIDA | E11: COSTO ($) (VALOR/UNIDAD DE MEDIDA) | F11: AÑO
F12: CANTIDAD | G12: TOTAL ($)
C13: Avisos periodico El Tiempo- (Página Corriente) | D13: 5 cm * 10 cm (2 Columnas) | E13: 577150 | G13: =+$E13*F13 -> 0
C14: Avisos periodico El Diario (Página Corriente) | D14: 5 cm * 10 cm (2 Columnas) | E14: 571000 | G14: =+$E14*F14 -> 0
C15: Avisos Licitaciones | D15: 5 cm *2 Columnas | E15: 371000 | G15: =+$E15*F15 -> 0
C16: Otro: | G16: =+$E16*F16 -> 0
C17: SERVICIOS OFRECIDOS POR LA EMISORA UTP (Código 511-4-131-04)
C18: Paquete Pautas radiales de 20 segundos | D18: 4 cuñas diarias por 3 meses | E18: 1447600 | G18: =+$E18*F18 -> 0
C19: Paquete Pautas radiales de 20 segundos | D19: 8 cuñas diarias por 1 mes | E19: 878900 | G19: 0
C20: Paquete Pautas radiales de 30 segundos | D20: 8 cuñas diarias por 3 meses | E20: 930600 | G20: 0
C21: Patrocinio de programas - Universitaria Stereo | D21: 1/2 Hora por 1 mes | E21: 361900 | G21: 0
C22: Otro: | G22: 0
C23: TOTAL PAUTAS EN RADIO, PERIÓDICO Y TELEVISIÓN | G23: =SUM(G13:G22) -> 0
C25: PRODUCCIÓN AUDIOVISUAL Y DESARROLLO WEB (VIDEOS, FILMACIONES, CUBRIMIENTOS, PAGINAS WEB)
C26: DESCRIPCION | D26: UNIDAD DE MEDIDA | E26: COSTO ($) (VALOR/UNIDAD DE MEDIDA) | F26: AÑO
F27: CANTIDAD | G27: TOTAL ($)
C28: SERVICIOS OFRECIDOS POR EL CRIE (Código 511-22-131-68)
C29: Blogs UTP (configuraciones especiales basicas) Publicación, hosting, capacitación y soporte 1 año | D29: UN | E29: 2738000 | G29: =+$E29*F29 -> 0
C30: Hosting página UTP | D30: 1 Año | E30: 766400 | G30: 0
C31: Filmación en formato HD por cámara | D31: 8 horas | E31: 437800 | G31: 0
C32: Servicio de Videoconferencia | D32: 4 horas | E32: 383700 | G32: 0
C33: Transmisión en directo (Puesto fijo a 2 cámaras) | D33: 8 horas | E33: 1970500 | G33: 0
C34: Video (institucional o comercial) 1.0 minuto editado | D34: UN | E34: 1095000 | G34: 0
C35: Diseño Revista Electrónica | E35: 6077000 | G35: 0
C36: Diseño de página Web • Actualizables intermedia | E36: 4599300 | G36: 0
C37: Edición no lineal | D37: 8 horas | E37: 492900 | G37: 0
C38: Otro: | G38: 0
G39: 0
C40: TOTAL PRODUCCIÓN AUDIOVISUAL Y DESARROLLO WEB | G40: =SUM(G29:G39) -> 0
C42: EDICIÓN DE LIBROS, REVISTAS, ESCRITOS Y TRABAJOS TIPOGRÁFICOS (DISEÑO E IMPRESIÓN)
C43: DESCRIPCION | D43: UNIDAD DE MEDIDA | E43: COSTO ($) (VALOR/UNIDAD DE MEDIDA) | F43: AÑO
F44: CANTIDAD | G44: TOTAL ($)
C45: SERVICIOS OFRECIDOS POR EL CRIE(Código 511-22-131-68)
C46: Diseño Plegables | D46: (4*4) | E46: 374300 | G46: =+$E46*F46 -> 0
C47: Diseño Afiches | D47: (4*0) | E47: 374300 | G47: 0
C48: Diseño y diagramación de libros | E48: 2371000 | G48: 0
C49: Diseño volantes | D49: (4*1) | E49: 182000 | G49: 0
C50: Diseño logo | E50: 592500 | G50: 0
C51: Diseño Pendones | E51: 320500 | G51: 0
C52: Diseño Escarapelas, certificados, tarjetas | E52: 58900 | G52: 0
C53: Diseño Portada Libros | E53: 374300 | G53: 0
C54: Diseño Portada | D54: CD y Labels | E54: 58900 | G54: 0
C55: Impresión de Certificados (Papel Kimberly 180 gr) | D55: (Unidad - Tamaño carta) | E55: 1000 | G55: 0
C56: Impresión de Plegables (Papel Kimberly 90 gr) | D56: (Unidad) | E56: 1000 | G56: 0
C57: Impresión de Afiches (Papel Bondo 75 gr) | D57: (Unidad - Tamaño Doble Carta) | E57: 1000 | G57: 0
C58: Impresión de Volantes (Papel Periódico) | D58: (Unidad) | E58: 1000 | G58: 0
C59: Otros: | G59: 0
G60: 0
G61: 0
C62: TOTAL EDICIÓN DE LIBROS, REVISTAS, ESCRITOS Y TRABAJOS TIPOGRÁFICOS | G62: =SUM(G46:G61) -> 0
C64: PROMOCIÓN Y DIFUSIÓN VIRTUAL
C65: DESCRIPCION | D65: UNIDAD DE MEDIDA | E65: COSTO ($) (VALOR/UNIDAD DE MEDIDA) | F65: AÑO
F66: CANTIDAD | G66: TOTAL ($)
C67: SERVICIOS OFRECIDOS POR UNIVIRTUAL (Código 511-21-131-57)
C68: Servicio de promoción para Programas Académicos de Pregrado y Posgrado, diplomados, seminarios y cursos de extensión, entre otros. | D68: Proceso de inscripción electrónica personalizada | E68: 2585000 | G68: =+$E68*F68 -> 0
D69: Diseño y ejecución de estrategia de telemercadeo | E69: 2585000 | G69: =+$E69*F69 -> 0
D70: Diseño y ejecución de estrategia Email Marketing | E70: 4136000 | G70: =+$E70*F70 -> 0
C71: Otro tipo de Divulgación | E71: 0 | G71: =+$E71*F71 -> 0
C73: =+C64 -> PROMOCIÓN Y DIFUSIÓN VIRTUAL | G73: =SUM(G68:G71) -> 0
C75: FOTOCOPIAS
C76: DESCRIPCION | D76: UNIDAD DE MEDIDA | E76: COSTO ($) (VALOR/UNIDAD DE MEDIDA) | F76: AÑO
F77: CANTIDAD | G77: TOTAL
C78: Fotocopias (Papel Bond 75 gr) | D78: (Unidad - Tamaño carta) | E78: 100 | G78: =+$E78*F78 -> 0
C79: Fotocopias (Papel Bond 75 gr) | D79: (Unidad - Tamaño oficio) | E79: 200 | G79: =+$E79*F79 -> 0
C80: =+C75 -> FOTOCOPIAS | G80: =SUM(G78:G79) -> 0
C82: OTROS IMPRESOS Y PUBLICACIONES (Incluye publicación de artículos, gastos relacionados con la asignación de códigos ISBN, entre otros
C83: DESCRIPCION | D83: UNIDAD DE MEDIDA | E83: COSTO ($) (VALOR/UNIDAD DE MEDIDA) | F83: AÑO
F84: CANTIDAD | G84: TOTAL ($)
G85: =+$E85*F85 -> 0
G86: =+$E86*F86 -> 0
C87: TOTAL OTROS IMPRESOS Y PUBLICACIONES | G87: =SUM(G85:G86) -> 0
C89: TOTAL IMPRESOS Y PUBLICACIONES | G89: =+G23+G40+G62+G73+G87+G80 -> 0

Sheet LIBROS Y REVISTAS
B2: VICERRECTORÍA ADMINISTRATIVA Y FINANCIERA | C2: VICERRECTORIA ADMINISTRATIVA
B3: FORMATO INTERNO DE PRESUPUESTO DE PROYECTOS Y PROGRAMAS | C3: FORMATOS DE PRESUPUESTO
B4: =+'ITEMS PRESUPUESTO'!B7:J7 -> VIGENCIA 2020
B8: PROYECCIÓN IMPRESOS Y PUBLICACIONES
C9: Nota: Dilgenciar únicamente los espacios en blanco
C12: LIBROS
C13: ASIGNATURA | D13: NOMBRE DE QUIEN SOLICITA | E13: TITULO | F13: AUTOR | G13: EDICION | H13: AÑO | I13: EDITORIAL | J13: ISBN | K13: TIPO (Libro, Video, CD-ROOM) | L13: PROCEDENCIA | N13: BIBLIOGRAFIA | Q13: COSTO UNITARIO | R13: AÑO 1 | V13: TOTAL
L14: NACIONAL | M14: INTERNACIONAL | N14: BASICA | O14: APOYO | P14: RECOMENDADO | R14: CANTIDAD | S14: TOTAL | V14: AÑO 5
S15: =$R15*Q15 -> 0
S16: =$R16*Q16 -> 0
S17: =$R17*Q17 -> 0
S18: =$R18*Q18 -> 0
S19: =$R19*Q19 -> 0
C20: TOTAL LIBROS | S20: =SUM(S15:S19) -> 0 | V20: =SUM(#REF!) -> 
C22: REVISTAS Y SUSCRIPCIONES (Inlcuye la adquisición de libros, revistas, suscripciones a bases de datos bibliográficas)
C23: NOMBRE DE QUIEN SOLICITA | D23: PROCEDENCIA | F23: TITULO | I23: EDITOR | K23: ISSN | L23: PERIODICIDAD | N23: FORMATO (Impreso, Línea) | Q23: COSTO SUSCRIPCION INSTITUCIONAL | R23: AÑO
D24: NACIONAL | E24: INTERNACIONAL | R24: CANTIDAD | S24: TOTAL
S25: =$Q25*R25 -> 0
S26: =$Q26*R26 -> 0
S27: =$Q27*R27 -> 0
S28: =$Q28*R28 -> 0
S29: =$Q29*R29 -> 0
C30: TOTAL REVISTAS | S30: =SUM(S25:S29) -> 0
C32: TOTAL ADQUISICIÓN DE LIBROS, REVISTAS Y SUSCRIPCIONES | S32: =+S20+S30 -> 0
C34: Nota: las solicitudes anteriores, corresponden al desarrollo del proyecto y no generan compromisos a la Universidad para su renovación.

Sheet COMUNICACION Y TRANSPORTE
B3: VICERRECTORÍA ADMINISTRATIVA Y FINANCIERA
B4: FORMATO INTERNO DE PRESUPUESTO DE PROYECTOS Y PROGRAMAS
B5: =+'ITEMS PRESUPUESTO'!B7:J7 -> VIGENCIA 2020
J7: Incremento proyectado
C8: PROYECCION COMUNICACIÓN Y TRANSPORTE | J8: 1.07
C10: ITEM | D10: DESCRIPCIÓN | E10: COSTO UNITARIO | F10: AÑO
F11: CANTIDAD | G11: TOTAL
C12: Fletes y Acarreos | D12: Incluye el servicio de transporte de carga, equipos, mercancía, muestras, entre otros. | E12: 250000 | G12: =+$E12*F12 -> 0
C13: Transporte | D13: Contratación del servicio de transporte de pasajeros. | E13: 200000 | G13: =+$E13*F13 -> 0
C14: Otros Comunicación y Transporte | D14: Incluye el envío de correspondencia, entre otros | E14: 0 | G14: =+$E14*F14 -> 0
G15: =+$E15*F15 -> 0
C16: TOTAL PROYECCION COMUNICACIÓN Y TRANSPORTE | G16: =SUM(G12:G15) -> 0
C18: Nota: Los valores unitarios son proyectados, se requiere realizar las cotizaciones respectivas para establecer valores definitivos.
C20: SERVICIOS DE RED
C21: DESCRIPCION | E21: COSTO UNIDAD | F21: AÑO
F22: CANTIDAD | G22: TOTAL
C23: Requerimiento de lineas telefónicas | E23: 100000 | G23: =F23*$E23 -> 0
C24: Instalación punto de red | E24: 280000 | G24: =F24*$E24 -> 0
C25: Instalación punto eléctrico doble | E25: 60000 | G25: =F25*$E25 -> 0
C26: Otros | G26: =F26*$E26 -> 0
C27: TOTAL OTROS SERVICIOS DE RED | G27: =SUM(G23:G26) -> 0
C29: TOTAL COMUNICACIÓN Y TRANSPORTE | G29: =+G16+G27 -> 0

Sheet SEGUROS
C3: VICERRECTORÍA ADMINISTRATIVA Y FINANCIERA
C4: FORMATO INTERNO DE PRESUPUESTO DE PROYECTOS Y PROGRAMAS
C5: =+'ITEMS PRESUPUESTO'!B7 -> VIGENCIA 2020
C8: PROYECCIÓN DE SEGUROS
C10: Nota: Diligenciar únicamente los espacios en blanco
C13: SEGUROS PARA COMPRA DE EQUIPO
C14: Nota: Este cálculo es automático y se cobra un porcentaje sobre el valor del equipo comprado
C15: Multiriesgo: Este seguro se calcula sobre el valor total de los equipos comprados
C16: Incendio y rotura de maquinaria: Este seguro se calcula sobre el valor total de los Muebles y Enseres
C17: IDENTIFICACION DEL SEGURO | D17: % | E17: AÑO
E18: VALOR DEL EQUIPO | F18: TOTAL
C19: Multiriesgo | D19: 0.06 | E19: ='COMPRA EQUIPO'!J41 -> 0 | F19: =E19*D19*5 -> 0
C20: Incendio y rotura maquinaria | D20: 0.02 | E20: =+'COMPRA EQUIPO'!J52 -> 0 | F20: =E20*D20*5 -> 0
C21: TOTAL SEGUROS PARA COMPRA DE EQUIPO | F21: =SUM(F19:F20) -> 0
C23: PÓLIZAS
C24: Nota: Este tipo de seguros se calcula sobre el valot total del convenio o contrato y el porcentaje depende del estipulado en el mismo; por lo tanto puede variar
C25: IDENTIFICACION DEL SEGURO | D25: % | E25: AÑO
E26: VALOR DEL CONVENIO | F26: TOTAL
C27: Póliza de Cumplimiento | D27: 0.003 | F27: =E27*$D27 -> 0
C28: Póliza Manejo de Anticipo | D28: 0.003 | F28: =E28*$D28 -> 0
C29: Póliza Prestaciones Sociales | D29: 0.003 | F29: =E29*$D29 -> 0
C30: Póliza Seriedad de la Propuesta | D30: 0.003 | F30: =E30*$D30 -> 0
C31: Otro
C32: VALOR DE LA PRIMA | F32: =SUM(F27:F31) -> 0
C34: TOTAL PÓLIZAS | F34: =+F21+F32 -> 0

Sheet CAPACITACION
B3: VICERRECTORÍA ADMINISTRATIVA Y FINANCIERA | C3: VICERRECTORIA ADMINISTRATIVA
B4: FORMATO INTERNO DE PRESUPUESTO DE PROYECTOS Y PROGRAMAS | M4: Incremento proyectado
B5: =+'ITEMS PRESUPUESTO'!B7 -> VIGENCIA 2020 | M5: 1.1
B8: PROYECCIÓN CAPACITACIÓN
C9: Nota: Diligenciar únicamente los espacios en blanco
C13: TABLA DE AYUDA
C14: VALORES PROMEDIO PASAJES Y VIÁTICOS
C15: Costo Pasaje Nacional | F15: 700000 | G15: Nota: Los valores de los tiquetes varían de acuerdo al destino y a la fecha de solicitud.
C16: Costo Viático Nacional por dia | F16: 220000
C17: Costo Pasaje Internacional | F17: 3000000 | G17: Nota: El valor de los viáticos varía de acuerdo al destino y cargo del funcionario.
C18: Costo Viático Internacional por dia | F18: 820000
C20: Ver Lineamientos en el siguiente Link: | E20: http://www.utp.edu.co/vicerrectoria/administrativa/comisiones-de-servicio.html
C22: CAPACITACIÓN
C24: CAPACITACIÓN NACIONAL Por este rubro se afectan todos los gastos relacionados con las comisiones de tipo FORMACIÓN Nacional que realicen los funcionarios o colaboradores de la Universidad, incluye los viáticos, pasajes, inscripción y matrícula.
C25: TIPO | D25: NO. PERSONAS | E25: DURACIÓN NACIONAL (NO. DIAS) POR PERSONA | F25: VALOR INSCRIPCIÓN MATRICULA NACIONAL POR PERSONA | G25: NO. PASAJES NACIONALES POR PERSONA | H25: VALOR TOTAL INSCRIPCIÓN MATRICULAS NACIONALES | I25: VALOR TOTAL PASAJES NACIONALES | J25: VALOR TOTAL VIATICOS NACIONALES | K25: TOTAL
C26: Seminario, Taller, Simposio, otros
H27: =D27*F27 -> 0 | I27: =D27*G27*$F$15 -> 0 | J27: =D27*E27*$F$16 -> 0 | K27: =SUM(H27:J27) -> 0
H28: =D28*F28 -> 0 | I28: =D28*G28*$F$15 -> 0 | J28: =D28*E28*$F$16 -> 0 | K28: =SUM(H28:J28) -> 0
H29: =D29*F29 -> 0 | I29: =D29*G29*$F$15 -> 0 | J29: =D29*E29*$F$16 -> 0 | K29: =SUM(H29:J29) -> 0
H30: =D30*F30 -> 0 | I30: =D30*G30*$F$15 -> 0 | J30: =D30*E30*$F$16 -> 0 | K30: =SUM(H30:J30) -> 0
H31: =D31*F31 -> 0 | I31: =D31*G31*$F$15 -> 0 | J31: =D31*E31*$F$16 -> 0 | K31: =SUM(H31:J31) -> 0
C32: SUBTOTAL | K32: =SUM(K27:K31) -> 0
C33: FORMACIÓN EN EL CAMPUS O POR CONVENIOS Y CONTRATOS (Gastos de capacitación en el marco de convenios o contratos tales como honorarios del facilitador, transporte y alojamiento en caso de requerirse. Gastos relacionados con la contratación de facilitadores para el desarrollo de capacitaciones al interior de la Universidad de acuerdo con las políticas de capacitación)
C34: DESCRIPCIÓN/ OBJETO | H34: HONORARIOS FACILITADOR | I34: TRANSPORTE | J34: ALOJAMIENTO | K34: TOTAL
K35: =SUM(H35:J35) -> 0
K36: =SUM(H36:J36) -> 0
K37: =SUM(H37:J37) -> 0
C38: SUBTOTAL | K38: =SUM(K35:K37) -> 0
C39: TOTAL CAPACITACIÓN NACIONAL | K39: =+K32+K38 -> 0
C41: CAPACITACION INTERNACIONAL (Incluye todos los gastos relacionados con las comisiones de tipo FORMACIÓN Internacional, incluye los viáticos, pasajes, inscripción y matrícula.)
C42: TIPO | D42: NO. PERSONAS | E42: DURACIÓN INTERNACIONAL (NO. DIAS) POR PERSONA | F42: VALOR INSCRIPCIÓN MATRICULA INTERNACIONAL POR PERSONA | G42: NO. PASAJES INTERNACIONALES POR PERSONA | H42: VALOR TOTAL INSCRIPCIÓN MATRICULAS INTERNACIONALES | I42: VALOR TOTAL PASAJES INTERNACIONALES | J42: VALOR TOTAL VIATICOS INTERNACIONALES | K42: TOTAL
C43: Seminario, Taller, Simposio, otros
H44: =D44*F44 -> 0 | I44: =D44*G44*$F$17 -> 0 | J44: =D44*E44*$F$18 -> 0 | K44: =SUM(H44:J44) -> 0
H45: =D45*F45 -> 0 | I45: =D45*G45*$F$17 -> 0 | J45: =D45*E45*$F$18 -> 0 | K45: =SUM(H45:J45) -> 0
H46: =D46*F46 -> 0 | I46: =D46*G46*$F$17 -> 0 | J46: =D46*E46*$F$18 -> 0 | K46: =SUM(H46:J46) -> 0
H47: =D47*F47 -> 0 | I47: =D47*G47*$F$17 -> 0 | J47: =D47*E47*$F$18 -> 0 | K47: =SUM(H47:J47) -> 0
H48: =D48*F48 -> 0 | I48: =D48*G48*$F$17 -> 0 | J48: =D48*E48*$F$18 -> 0 | K48: =SUM(H48:J48) -> 0
C49: TOTAL CAPACITACIÓN INTERNACIONAL | K49: =SUM(K44:K48) -> 0
C51: TOTAL CAPACITACIÓN | K51: =K32+K39+K49 -> 0

Sheet IMPUESTO-CONTRIBUCIONES Y G.F
B3: VICERRECTORÍA ADMINISTRATIVA Y FINANCIERA | C3: VICERRECTORIA ADMINISTRATIVA
B4: FORMATO INTERNO DE PRESUPUESTO DE PROYECTOS Y PROGRAMAS | C4: FORMATOS DE PRESUPUESTO
B5: =+'ITEMS PRESUPUESTO'!B7:J7 -> VIGENCIA 2020
C8: IMPUESTOS, CONTRIBUCIONES Y GASTOS FINANCIEROS
C10: Nota: Diligenciar únicamento los espacios en blanco
C13: IMPUESTOS Y CONTRIBUCIONES
C15: DESCRIPCION | D15: AÑO
D16: VALOR | E16: TOTAL
C17: Estampillas | E17: =+D17 -> 0
C18: Sayco y Acinpro | E18: =+D18 -> 0
C19: Contrapartida IVA (Proyectos Colciencias) | E19: 0
C20: Otros como: Derechos Ministerio, Trámites Notariales | E20: 0
E21: 0
C22: TOTAL IMPUESTOS Y CONTRIBUCIONES | E22: =SUM(E17:E21) -> 0
C24: GASTOS FINANCIEROS
C26: DESCRIPCION | D26: AÑO
D27: VALOR | E27: TOTAL
C28: Comisiones bancarias | E28: =+D28 -> 0
C29: TRM | E29: =+D29 -> 0
C30: Otros: | E30: 0
E31: 0
E32: 0
C33: TOTAL GASTOS FINANCIEROS | E33: =SUM(E28:E32) -> 0
C35: IMPUESTOS, CONTRIBUCIONES Y GASTOS FINANCIEROS | E35: =+E22+E33 -> 0

Sheet OTROS GASTOS POR ADQUISICIÓN
J2: Incremento proyectado
C3: VICERRECTORÍA ADMINISTRATIVA Y FINANCIERA | J3: 1.08
C4: FORMATO INTERNO DE PRESUPUESTO DE PROYECTOS Y PROGRAMAS
C5: =+'ITEMS PRESUPUESTO'!B7 -> VIGENCIA 2020 | F5: =+'ITEMS PRESUPUESTO'!B7:J7 -> 0
C8: PROYECCION OTROS GASTOS POR ADQUISICIÓN DE SERVICIOS
C11: OTROS GASTOS POR ADQUISICIÓN DE SERVICIOS
C13: CONCEPTO | D13: DEFINICIÓN | E13: DESCRIPCIÓN | F13: VALOR | G13: CANTIDAD | H13: TOTAL
C14: Servicios Logísticos | D14: Incluye la contratación de personas naturales o jurídicas que en el marco de su actividad económica preste servicios logísticos (organización de eventos) y servicios de alimentación. | H14: =F14*G14 -> 0
C15: Afiliaciones, Sostenimiento y Membresías | D15: Es el pago que se realiza a una organización o entidad nacional o internacional para poder pertenecer a la misma, recibiendo información sobre sus servicios y productos. | H15: =F15*G15 -> 0
C16: Otros:
H17: =F17*G17 -> 0
H18: =F18*G18 -> 0
C19: TOTAL OTROS GASTOS POR ADQUISICIÓN DE SERVICIOS | H19: =SUM(H14:H18) -> 0

Sheet ESTUDIANTES
C3: VICERRECTORÍA ADMINISTRATIVA Y FINANCIERA
C4: FORMATO INTERNO DE PRESUPUESTO DE PROYECTOS Y PROGRAMAS
C5: =+'ITEMS PRESUPUESTO'!B7 -> VIGENCIA 2020
C8: PROYECCIÓN COSTOS ESTUDIANTES
C10: Nota: Diligenciar únicamente los espacios en blanco | E10: SMMLV 2019 | F10: 828116
E11: SMMLV 2020 proyectado | F11: =+F10*(1+'GASTOS DE PERSONAL'!H25) -> 877802.96
C14: ESTUDIANTES PREGRADO (JORNADA ESPECIAL, COHORTE, EXTENSIÓN, CERES)
C15: CONCEPTO | D15: VALOR | E15: No. ESTUDIANTES | F15: TOTAL
C16: Seguro estudiantil | D16: =38871*1.1 -> 42758.1 | F16: =E16*$D16 -> 0
C17: Servicio de Redes (5% SMMLV) | D17: =5%*F11 -> 43890.148 | F17: =E17*$D17 -> 0
C18: Carnetización (1,26% SMMLV Estudiantes Primíparos) | D18: =1.26%*F11 -> 11060.3173 | F18: =E18*$D18 -> 0
C19: Otro: | F19: =E19*$D19 -> 0
C20: TOTAL SERVICIOS ESTUDIANTES | F20: =SUM(F16:F19) -> 0
C24: ESTUDIANTES POSGRADO
C25: CONCEPTO | D25: VALOR | E25: No. ESTUDIANTES | F25: TOTAL
C26: Seguro estudiantil | D26: =38871*1.1 -> 42758.1 | F26: =E26*$D26 -> 0
C27: Carnetización (1,26% SMMLV Estudiantes Primíparos) | D27: =1.26%*F11 -> 11060.3173 | F27: =E27*$D27 -> 0
C28: Otro: | F28: =E28*$D28 -> 0
C29: TOTAL SERVICIOS ESTUDIANTES | F29: =SUM(F26:F28) -> 0
C32: OTROS COSTOS ESPECÍFICOS ESTUDIANTES: APORTES SEGURIDAD SOCIAL Y ARL
C33: IDENTIFICACION DEL SEGURO | D33: VALOR | E33: No. ESTUDIANTES | F33: TOTAL
C34: Afiliación EPS Cotizante 21 (12,5% SMMLV) | D34: =+F11*12.5% -> 109725.37 | F34: =E34*$D34*12 -> 0
C35: Afiliación ARL Cotizante 21 (2,436% SMMLV) | D35: =+F11*2.436% -> 21383.28011 | F35: =E35*$D35*12 -> 0
C36: Afiliación ARL Radiología Cotizante 21 (6,97% SMMLV) | D36: =+F11*6.97% -> 61182.86631 | F36: =E36*$D36*12 -> 0
C37: Afiliación ARL Decreto 055 de 2015 (estudiantes en escenarios prácticas o asignaturas práticas) | D37: =+F11*0.522% -> 4582.131451 | F37: =E37*$D37*12 -> 0
C38: Otro: | F38: =E38*$D38 -> 0
C40: TOTAL APORTES SEGURIDAD SOCIAL Y ARL ESTUDIANTES | F40: =SUM(F34:F39) -> 0
D43: Póliza Seguro Estudiantil
D44: 5500 | E44: Valor Oct 2009-2010
D45: 6200 | E45: Valor Oct 2010-2011
D46: =+D45/D44 -> 1.127272727 | E46: Incremento

Sheet INVERSIÓN
C2: VICERRECTORÍA ADMINISTRATIVA Y FINANCIERA
C3: FORMATO INTERNO DE PRESUPUESTO DE PROYECTOS Y PROGRAMAS
C4: =+'ITEMS PRESUPUESTO'!B7 -> VIGENCIA 2020
B7: PROYECCIÓN INVERSIÓN
C8: Nota: La Oficina de Planeación es la encargada del manejo de las obras civiles y remodelaciones dentro en la Institución, por tanto se recomienda solicitar ante esta oficina asesoría en los valores de las mismas. Obra civil: Contempla todo lo relacionado con Obra civil (Construcción). Remodelación e instalación: Contempla las adecuaciones de espacios, instalación de paneles, módulos, entre otros.
C9: PROYECCIÓN INVERSIÓN
C10: CONCEPTO | D10: TIPO DE ESPACIO | E10: DESCRIPCIÓN DEL SERVICIO | F10: VALOR | G10: CANTIDAD | H10: TOTAL
C11: Obra civil | D11: Aula | H11: =+F11*G11 -> 0
D12: Oficina | H12: =+F12*G12 -> 0
D13: Laboratorio | H13: =+F13*G13 -> 0
D14: Otro: | H14: =+F14*G14 -> 0
C15: TOTAL OBRA CIVIL | H15: =SUM(H11:H14) -> 0
C16: Remodelación e instalación | D16: Aula | H16: =+F16*G16 -> 0
D17: Oficina | H17: =+F17*G17 -> 0
D18: Laboratorio | H18: =+F18*G18 -> 0
D19: Otro: | H19: =+F19*G19 -> 0
C20: TOTAL REMODELACIÓN E INSTALACIÓN | H20: =SUM(H16:H19) -> 0
C21: TOTAL INVERSIÓN | H21: =+H15+H20 -> 0

Sheet INGRESOS
B3: VICERRECTORÍA ADMINISTRATIVA Y FINANCIERA | C3: VICERRECTORIA ADMINISTRATIVA
B4: FORMATO INTERNO DE PRESUPUESTO DE PROYECTOS Y PROGRAMAS | C4: FORMATOS DE PRESUPUESTO
B5: =+'ITEMS PRESUPUESTO'!B7:J7 -> VIGENCIA 2020
C8: PROYECCION INGRESOS
C9: Nota: Diligenciar únicamente los espacios en blanco
C12: INGRESOS ACÁDEMICOS
C13: Nota 1: El valor de las inscripciones y las matrículas para los Programas de Pregrado y Posgrado deben expresarse en SMMLV. Nota 2: El valor de la inscripción de los Pregrados es de 0,10 SMMLV (Acuerdo No. 08 de1997) Nota 3: El valor de la inscripción de los Posgrados es de 0,25 SMMLV, excepto los posgrados en Ciencias Clínicas (1 SMMLV) . (Acuerdo No.15 de 2006 y Acuerdo No. 50 de 2009).
E15: SMMLV 2019 | G15: 828116
E16: SMMLV 2020 | G16: =+G15*(1+'GASTOS DE PERSONAL'!H25) -> 877802.96
C18: PROGRAMAS PREGRADO
C19: DESCRIPCION | D19: SALARIOS MINIMOS | E19: VALOR UNITARIO | F19: No. DE ESTUDIANTES | G19: TOTAL
C20: Inscripción | D20: 0.1 | E20: =D20*$G$16 -> 87780.296 | G20: =F20*$E20 -> 0
C21: Matrícula I Semestre | E21: 0 | G21: 0
C22: Matrícula II Semestre | E22: 0 | G22: 0
C23: Matrícula III Semestre | E23: 0 | G23: 0
C24: Matrícula IV Semestre | E24: 0 | G24: 0
C25: Matrícula V Semestre | E25: =D25*$G$16 -> 0 | G25: 0
C26: Matrícula VI Semestre | E26: 0 | G26: 0
C27: Matrícula VII Semestre | E27: 0 | G27: 0
C28: MatrículaVIII Semestre | E28: 0 | G28: 0
C29: Matrícula IX Semestre | E29: 0 | G29: 0
C30: Matrícula X Semestre | E30: =D30*$G$16 -> 0 | G30: =F30*$E30 -> 0
C31: Otros | G31: =F31*$E31 -> 0
C32: Descuento por Votaciones (10% Valor de matrícula) | G32: =SUM(G21:G31)*0.1 -> 0
C33: Derechos académicos (Servicios Especiales) | G33: =SUM(G21:G31)*0.1 -> 0
C34: TOTAL INGRESOS ACADÉMICOS PREGRADO | G34: =SUM(G21:G30)+G31-G32-G33 -> 0
C36: PROGRAMAS POSGRADO
C37: DESCRIPCION | D37: SALARIOS MINIMOS | E37: VALOR UNITARIO | F37: No. DE ESTUDIANTES | G37: TOTAL
C38: Inscripción | D38: 0.25 | E38: =D38*$G$16 -> 219450.74 | G38: =F38*$E38 -> 0
C39: Inscripción Especializaciones Médicas | D39: 1 | E39: =D39*$G$16 -> 877802.96 | G39: =F39*$E39 -> 0
C40: Matrícula I Semestre | E40: 0 | G40: 0
C41: Matrícula II Semestre | E41: 0 | G41: 0
C42: Matrícula III Semestre | E42: 0 | G42: 0
C43: Matrícula IV Semestre | E43: 0 | G43: 0
C44: Matrícula V Semestre | E44: 0 | G44: 0
C45: Matrícula VI Semestre | E45: 0 | G45: 0
C46: Matrícula VII Semestre | E46: 0 | G46: 0
C47: Matrícula VIII Semestre | E47: 0 | G47: 0
C48: Otros | G48: =F48*$E48 -> 0
C49: Descuento por Votaciones (10% Valor de matrícula) | G49: =SUM(G40:G48)*0.1 -> 0
C50: Descuento por Egresados (10% Valor de matrícula) | G50: =SUM(G40:G48)*0.1 -> 0
C51: Otro tipo de Descuento
C52: TOTAL INGRESOS ACADÉMICOS POSGRADO | G52: =+G38+G39+SUM(G40:G47)+G48-G49-G50-G51 -> 0
C54: VENTA DE SERVICIOS
C55: Nota: Favor diligenciar la descripción de los servicios que se se proyectan para la vigencia.
C56: DESCRIPCION | E56: VALOR DEL SERVICIO | F56: NÚMERO DE SERVICIOS | G56: TOTAL
G58: =E58*F58 -> 0
G59: =E59*F59 -> 0
G60: =E60*F60 -> 0
G61: =E61*F61 -> 0
G62: =E62*F62 -> 0
C63: TOTAL VENTA DE SERVICIOS | G63: =SUM(G58:G62) -> 0
C65: CONTRATOS O CONVENIOS
C66: Nota: El Contrato o Convenio debe estar debidamente legalizado antes de la presentación del presupuesto.
C67: DESCRIPCION | E67: NUMERO DE CONVENIO | F67: VALOR (INGRESO NETO) | G67: TOTAL
C69: Convenio Interinstitucional | G69: =F69 -> 0
C70: Otro Tipo de Contrato o Convenio | G70: =F70 -> 0
C71: TOTAL CONTRATOS O CONVENIOS | G71: =SUM(G69:G70) -> 0
C73: APORTES
C74: Nota: El valor de los Aportes debe estar aprobado por la Vicerrectoría Administrativa
C75: DESCRIPCION | E75: VALOR APORTE | G75: TOTAL
C77: Nación | G77: =E77 -> 0
C78: Departamento | G78: 0
C79: Municipio | G79: 0
C80: Empresa Privada | G80: 0
C81: Cooperación Internacional | G81: 0
C82: UTP | G82: 0
C83: TOTAL APORTES | G83: =SUM(G77:G82) -> 0

Sheet FLUJO DE CAJA
B2: VICERRECTORÍA ADMINISTRATIVA Y FINANCIERA | C2: VICERRECTORIA ADMINISTRATIVA
B3: FLUJO DE CAJA | C3: FLUJO DE CAJA
B4: =+'ITEMS PRESUPUESTO'!B7 -> VIGENCIA 2020
C5: FLUJO DE CAJA
B7: FLUJO DE CAJA POR AÑO
B9: FLUJO DE EGRESOS
B10: DETALLE | C10: TOTAL
B12: INVERSION | C12: =SUM(C13:C14) -> 0
B13: Obra Civil | C13: =INVERSIÓN!H15 -> 0
B14: Remodelación e instalación | C14: =+INVERSIÓN!H20 -> 0
B15: GASTOS DE PERSONAL | C15: =SUM(C16:C30) -> 0
A16: PS | B16: Prestación de Servicios (órdenes contractuales) | C16: =SUMIF('GASTOS DE PERSONAL'!$F$35:$F$80,A16,'GASTOS DE PERSONAL'!$K$35:$K$80) -> 0
A17: O | B17: Ocasional de Proyecto | C17: =SUMIF('GASTOS DE PERSONAL'!$F$35:$F$80,A17,'GASTOS DE PERSONAL'!$K$35:$K$80) -> 0
A18: TD | B18: Docentes Transitorios | C18: =SUMIF('GASTOS DE PERSONAL'!$F$35:$F$80,A18,'GASTOS DE PERSONAL'!$K$35:$K$80) -> 0
A19: TA | B19: Transitorios Administrativos | C19: =SUMIF('GASTOS DE PERSONAL'!$F$35:$F$80,A19,'GASTOS DE PERSONAL'!$K$35:$K$80) -> 0
A20: DC | B20: Docentes catedráticos | C20: =SUMIF('GASTOS DE PERSONAL'!$F$35:$F$80,A20,'GASTOS DE PERSONAL'!$K$35:$K$80) -> 0
A21: HC | B21: Hora Cátedra | C21: =SUMIF('GASTOS DE PERSONAL'!$F$35:$F$80,A21,'GASTOS DE PERSONAL'!$K$35:$K$80) -> 0
B22: Monitorías Académicas | C22: ='MONITORÍAS ACADÉMICAS'!$N$45 -> 0
A23: M | B23: Monitorías Proyecto | C23: =SUMIF('GASTOS DE PERSONAL'!$F$35:$F$80,A23,'GASTOS DE PERSONAL'!$K$35:$K$80) -> 0
A24: TG | B24: Directores, Jurados y Evaluadores | C24: =SUMIF('GASTOS DE PERSONAL'!$F$35:$F$80,A24,'GASTOS DE PERSONAL'!$K$35:$K$80) -> 0
A25: ILEX | B25: Cursos ILEX | C25: =SUMIF('GASTOS DE PERSONAL'!$F$35:$F$80,A25,'GASTOS DE PERSONAL'!$K$35:$K$80) -> 0
A26: ST | B26: Servicios Técnicos Especiales | C26: =SUMIF('GASTOS DE PERSONAL'!$F$35:$F$80,A26,'GASTOS DE PERSONAL'!$K$35:$K$80) -> 0
A27: EA | B27: Estímulos Labores Administrativas | C27: =SUMIF('GASTOS DE PERSONAL'!$F$35:$F$80,A27,'GASTOS DE PERSONAL'!$K$35:$K$80) -> 0
A28: BE | B28: Bonificación Servicios De Extensión | C28: =SUMIF('GASTOS DE PERSONAL'!$F$35:$F$80,A28,'GASTOS DE PERSONAL'!$K$35:$K$80) -> 0
A29: CO | B29: Coordinación | C29: =SUMIF('GASTOS DE PERSONAL'!$F$35:$F$80,A29,'GASTOS DE PERSONAL'!$K$35:$K$80) -> 0
B30: Aportes seguridad social y ARL | C30: =ESTUDIANTES!$F$40 -> 0
B31: GASTOS GENERALES | C31: =SUM(C32:C50) -> 0
B32: Compra de equipo | C32: =+'COMPRA EQUIPO'!J52 -> 0
B33: Seguros | C33: =+SEGUROS!F34+ESTUDIANTES!F16+ESTUDIANTES!F26 -> 0
B34: Mantenimiento | C34: =MANTENIMIENTO!F45 -> 0
B35: Materiales y suministros | C35: =+'MATERIALES Y SUMINISTROS'!$J$42 -> 0
B36: Otros Gastos por adquisición de servicios | C36: =+'OTROS GASTOS POR ADQUISICIÓN'!H19 -> 0
B37: Impresos y publicaciones | C37: ='IMPRESOS Y PUBLICACIONES'!G89+'LIBROS Y REVISTAS'!S32+ESTUDIANTES!F18+ESTUDIANTES!F27 -> 0
B38: Comunicaciones y Transporte | C38: ='COMUNICACION Y TRANSPORTE'!G29+ESTUDIANTES!F17 -> 0
B39: Arrendamiento | C39: =+ARRENDAMIENTO!G54 -> 0
B40: Impuestos, Contribuciones y Gastos Financieros | C40: =+'IMPUESTO-CONTRIBUCIONES Y G.F'!E35 -> 0
B41: Servicios públicos | C41: =+'SERVICIOS PUBLICOS'!F30 -> 0
B42: Viáticos y gastos de viaje | C42: ='VIATICOS Y GASTOS DE VIAJE'!H58 -> 0
B43: Capacitación | C43: =CAPACITACION!K51 -> 0
B44: Gastos de funcionamiento adicionales | C44: =+ESTUDIANTES!F19+ESTUDIANTES!F28 -> 0
B45: Transferencias Bienestar Universitario (Matrícula y apoyos socioeconómicos) | C45: 0
B46: Transferencias (Contrapartidas Colciencias, otros) | C46: 0
B47: Administración 5% | C47: =($C$61-$C$60)*0.05 -> 0
B48: Biblioteca 5% | C48: =($C$61-$C$60)*0.05 -> 0
B49: Investigación 5% | C49: =($C$61-$C$60)*0.05 -> 0
B50: Gastos Generales 5% | C50: =($C$61-$C$60)*0.05 -> 0
B51: TOTAL GASTOS | C51: =+C31+C15+C12 -> 0
B53: FLUJO DE INGRESOS
B54: DETALLE | C54: TOTAL
B56: RECURSOS GENERADOS POR EL PROYECTO
B57: Ingresos Académicos | C57: =+INGRESOS!G34+INGRESOS!G52 -> 0
B58: Venta de servicios | C58: =+INGRESOS!G63 -> 0
B59: Contratos o Convenios | C59: =+INGRESOS!G71 -> 0
B60: Aportes | C60: =+INGRESOS!G83 -> 0
B61: TOTAL INGRESOS | C61: =SUM(C57:C60) -> 0
B63: DIFERENCIA (INGRESOS-GASTOS) | C63: =C61-C51 -> 0
B65: PUNTO DE EQUILIBRIO | C65: =IF(INGRESOS!F40+INGRESOS!F21>0,(C51/(SUM(INGRESOS!E40:E47)+SUM(INGRESOS!E21:E30)-((SUM(INGRESOS!E40:E47)+SUM(INGRESOS!E21:E30))*0.2))*1.2),"No Aplica") -> No Aplica
B67: Vo. Bo. Jefe Gestión Financiera
B68: APROBADO
B69: RECHAZADO
